[Event "44th Chess Olympiad Women 2022"]
[Site "Chennai"]
[Date "2022.08.06"]
[Round "8.11"]
[White "Chumpitaz, Ann"]
[Black "Peng, Zhaoqin"]
[Result "0-1"]
[WhiteElo "2278"]
[BlackElo "2349"]
[Annotator "TA"]
[PlyCount "79"]
[EventDate "2022.??.??"]
[TimeControl "60"]

{[%evp 16,79,0,0,0,-27,-33,-34,-36,-43,-34,-35,-27,-64,-74,-69,-30,-32,-29,-50,
-50,-48,-51,-67,-67,-89,-72,-85,-85,-101,-100,-94,-45,-77,-66,-196,-218,-210,
-201,-175,-193,-186,-176,-443,-443,-431,-427,-538,-538,-534,-527,-785,-785,
-785,-746,-746,-745,-6215,-6023,-5509,-5222,-3642,-1981,-29982,-29971,-3620]} 
1. e4 {[%emt 0:00:03]} e6 {[%emt 0:00:05]} 2. d4 {[%emt 0:00:05]} d5 {[%emt 0:
00:00]} 3. e5 {[%emt 0:00:02]} c5 {[%emt 0:00:12]} 4. c3 {[%emt 0:00:03]} Nc6 {
[%emt 0:00:17]} 5. a3 {[%emt 0:00:10]} Nge7 {[%emt 0:01:55]} 6. b4 {[%emt 0:00:
00]} cxd4 {[%emt 0:00:25]} 7. cxd4 {[%emt 0:00:03]} Nf5 {[%emt 0:00:42]} 8. Nf3
{[%emt 0:00:09]} Bd7 {[%emt 0:01:27]} 9. Bb2 {[%emt 0:00:18]} b5 {[%emt 0:00:
00] C02: French: Advance Variation.} 10. Bxb5 {[%emt 0:25:19] [#]} Nxe5 {
[%emt 0:00:22]} 11. Nxe5 {[%emt 0:00:11]} (11. dxe5 Bxb5) 11... Bxb5 {[%emt 0:
00:00] Black is slightly better.} 12. Nc3 {[%emt 0:00:01][%cal Yb1c3,Yc3a4,
Ya4c5]} ({Reject} 12. Qh5 g6 13. Qd1 f6 $17) 12... Bd7 {[%emt 0:09:22]} ({
Don't play} 12... Nd6 13. Nxb5 Nxb5 14. O-O $14) 13. Na4 {[%emt 0:05:23]} Bd6 {
[%emt 0:03:41] [#]} 14. Nc5 $146 {[%emt 0:02:58]} ({Predecessor:} 14. Nxd7 Qxd7
15. Nc5 Qb5 16. Qe2 a6 17. Bc3 Ke7 18. a4 Qxe2+ 19. Kxe2 Rhc8 20. Rhc1 Bxc5 21.
dxc5 {1-0 (33) Bryn,A (2018)-Jordan Martinez,D (2122) Caleta 2017}) 14... Bxe5
{[%emt 0:00:39]} 15. dxe5 {[%emt 0:00:26]} O-O {[%emt 0:07:56]} (15... Bb5 {
keeps more tension.} 16. Nd3 Qh4 17. O-O Qc4) 16. O-O {[%emt 0:00:00]} a5 {
[%emt 0:08:55]} 17. bxa5 {[%emt 0:34:19]} Bb5 {[%emt 0:01:26]} ({Much less
strong is} 17... Rxa5 18. Nb7 Qb8 19. Nxa5 $16) 18. Re1 {[%emt 0:00:00]} Qc7 {
[%emt 0:17:59]} 19. Rc1 {[%emt 0:07:01][%cal Yc5e6,Ya1c1,Yc1c4,Yc4b4] Hoping
for Nxe6!} Bc4 $36 {[%emt 0:00:36] Black is pushing.} 20. Nd7 {[%emt 0:00:22]}
Qxd7 {[%emt 0:07:06]} 21. Rxc4 {[%emt 0:00:00]} Rxa5 {[%emt 0:00:20]} 22. Rb4 {
[%emt 0:00:07]} Rc8 {[%emt 0:01:58]} 23. Qb3 {[%emt 0:01:11]} h5 {[%emt 0:03:
37]} ({Better is} 23... h6 $17) 24. Rb7 {[%emt 0:02:52]} Qa4 {[%emt 0:09:19]}
25. Qf3 {[%emt 0:06:40] Now White is beyond hope.} ({White should try} 25. Rb4
$15 Qxb3 26. Rxb3) 25... Rb5 $19 {[%emt 0:01:28]} 26. Rxb5 {[%emt 0:00:31]}
Qxb5 {[%emt 0:00:02]} 27. Qe2 {[%emt 0:07:31] [#]} Qb3 {[%emt 0:07:49] ...Rc2
is the strong threat.} 28. Bc1 {[%emt 0:00:04]} Nd4 {[%emt 0:05:10]} 29. Qd2 {
[%emt 0:03:07] [#]} (29. Qf1 {was worth a try.}) 29... Qc4 $1 {[%emt 0:03:56]}
30. Bb2 {[%emt 0:01:12]} Nb3 {[%emt 0:01:26]} 31. Qe2 {[%emt 0:00:47]} Qxe2 {
[%emt 0:02:12]} 32. Rxe2 {[%emt 0:00:02] Endgame KRB-KRN} d4 {[%emt 0:00:05]
[%cal Yd5d4,Yd4d3,Yd3d2] Inhibits Re3. And now ...d3 would win.} 33. g4 {
[%emt 0:01:00]} d3 {[%emt 0:01:06]} 34. Re1 {[%emt 0:00:34]} d2 {[%emt 0:00:52]
} 35. Rd1 {[%emt 0:00:31]} Rc2 {[%emt 0:00:08]} 36. Kf1 {[%emt 0:00:30]} hxg4 {
[%emt 0:00:00]} 37. Ke2 {[%emt 0:00:24]} Rxb2 {[%emt 0:00:12]} 38. a4 {[%emt 0:
00:02]} Ra2 {[%emt 0:01:25]} 39. Rb1 {[%emt 0:01:01]} Nd4+ {[%emt 0:00:28]} 40.
Ke3 {[%emt 0:00:00] Weighted Error Value: White=0.76/Black=0.15 (very precise)}
0-1

[Event "44th Chess Olympiad Women 2022"]
[Site "Chennai"]
[Date "2022.08.06"]
[Round "8.11"]
[White "Roebers, Eline"]
[Black "Cori T., Deysi"]
[Result "1-0"]
[WhiteElo "2344"]
[BlackElo "2371"]
[Annotator "TA"]
[PlyCount "115"]
[EventDate "2022.??.??"]
[TimeControl "60"]

{[%evp 9,115,16,18,27,30,-15,0,0,0,-8,-35,-9,0,0,16,0,39,0,0,0,0,-52,-42,-49,
-23,-106,-89,-115,41,0,0,-38,149,-109,0,0,125,124,153,120,288,291,287,289,271,
287,352,352,358,358,360,274,248,0,370,368,397,388,496,494,484,475,446,367,494,
476,433,281,278,272,403,369,426,413,459,394,404,271,625,616,547,516,501,491,
484,480,470,458,434,312,745,750,907,859,29965,6065,29971,29972,29971,29971,
29971,29971,29971,29971,29967,29968,29987,29986]} 1. e4 {[%emt 0:00:02]} c6 {
[%emt 0:00:23]} 2. d4 {[%emt 0:00:11]} d5 {[%emt 0:00:09]} 3. e5 {[%emt 0:00:
00]} Bf5 {[%emt 0:00:30]} 4. g4 {[%emt 0:02:22]} Bd7 {[%emt 0:02:03]} 5. Nc3 {
[%emt 0:00:14]} e6 {[%emt 0:12:07]} 6. Be3 {[%emt 0:00:34] B12: Caro-Kann:
Advance Variation.} Ne7 {[%emt 0:03:49][%cal Yh7h5]} 7. Be2 {[%emt 0:10:58]} h5
{[%emt 0:05:47]} 8. gxh5 {[%emt 0:01:23] The position is equal.} Nf5 {[%emt 0:
00:00][%cal Yc6c5]} 9. Qd2 {[%emt 0:02:08]} c5 {[%emt 0:02:50]} 10. Nf3 $1 {
[%emt 0:05:43]} (10. dxc5 $2 d4 11. Bxd4 Bc6 $19) 10... Nc6 {[%emt 0:12:14] [#]
} 11. dxc5 $146 {[%emt 0:18:40]} ({Predecessor:} 11. O-O-O c4 12. Rhg1 Qa5 13.
a3 b5 14. Nb1 b4 15. h6 gxh6 16. Rg4 Rb8 17. Rdg1 bxa3 18. Qxa5 axb2+ {0-1 (24)
Zermiche,C (2162)-Bareev,E (2653) Ajaccio 2007}) 11... a6 {[%emt 0:25:20]
Against Nb5} 12. O-O-O {[%emt 0:14:41]} Nxe3 {[%emt 0:10:46]} 13. Qxe3 {
[%emt 0:00:25]} (13. fxe3 $5 {[%cal Re3e4]} Bxc5 14. Rhg1 $11) 13... Rxh5 {
[%emt 0:00:55]} 14. Rhg1 {[%emt 0:04:55]} g6 {[%emt 0:08:09] Threatens to win
with ...Bh6.} 15. Kb1 {[%emt 0:19:18]} ({Better is} 15. h4 $11) 15... Bh6 $15 {
[%emt 0:07:53]} 16. Qd3 {[%emt 0:00:05][%cal Yg1g6] And now Rxg6! would win.}
Qe7 $1 {[%emt 0:01:05]} 17. Rde1 {[%emt 0:06:28]} (17. h4 $11) 17... O-O-O {
[%emt 0:01:33]} (17... Nxe5 $6 18. Nxe5 Rxe5 19. Qd4 $15) (17... Qxc5 $6 18.
Rxg6 Ke7 19. Nh4 $1 Nxe5 20. Qg3 Nxg6 21. Bxh5 $11) 18. Na4 {[%emt 0:02:40]
[%cal Yc3a4,Ya4b6,Yb6d7]} Nxe5 $2 {[%emt 0:01:12]} (18... Be8 $17 19. Nb6+ Kb8)
19. Nxe5 {[%emt 0:02:51]} Rxe5 {[%emt 0:00:05]} 20. Qg3 {[%emt 0:00:00] aiming
for Nb6+.} Qg5 $2 {[%emt 0:00:52]} (20... Bxa4 21. Qxe5 Qxc5 22. Bd3 $11 (22.
b3 Bd2 $11)) (20... Qf6 $15 {keeps the upper hand.} 21. Bb5 (21. Nb6+ Kc7 $17)
21... Bxb5 22. Nb6+ (22. Qxe5 Qxe5 23. Nb6+ Kc7 $11) 22... Kc7 23. Qxe5+ (23.
Rxe5 $2 Bf4 $19) 23... Qxe5 24. Rxe5 Bg7) 21. Qc3 $2 {[%emt 0:01:59] [#]} Qf4 {
[%emt 0:02:23]} (21... Qf6 $1 $17 22. Nb6+ Kb8 23. Nxd7+ Rxd7) 22. Rg4 $36 {
[%emt 0:01:55] White is more active.} d4 {[%emt 0:00:16]} (22... Qf6 $11) 23.
Nb6+ $16 {[%emt 0:01:13]} (23. Rxf4 $6 dxc3 24. Nb6+ Kc7 25. Rxf7 Rxc5 26.
Rxd7+ Rxd7 27. Nxd7 Kxd7 $11) (23. Qxd4 Qxd4 24. Nb6+ Kc7 25. Rxd4 Bc6 26. Rxd8
Kxd8 $17) 23... Kb8 {[%emt 0:00:58]} 24. Qxd4 {[%emt 0:00:06]} Qxd4 {[%emt 0:
00:24]} (24... Rxe2 $16 25. Qxf4+ (25. Rxf4 $2 Rxe1+) 25... Bxf4 26. Rxe2 Bc6)
25. Rxd4 $18 {[%emt 0:00:04] The board is on fire.} Kc7 {[%emt 0:00:07]} 26.
Rxd7+ {[%emt 0:02:02]} ({Resist} 26. Nxd7 Rf5 $18) 26... Rxd7 {[%emt 0:00:03]}
27. Nxd7 {[%emt 0:00:04]} Rf5 {[%emt 0:00:30]} 28. Bd3 {[%emt 0:00:55]} Rxf2 {
[%emt 0:00:04]} 29. Ne5 {[%emt 0:00:42]} Bg7 {[%emt 0:00:19]} 30. Ng4 {[%emt 0:
01:02]} Rf4 {[%emt 0:01:17]} 31. Ne5 {[%emt 0:00:00]} (31. h3 $142) 31... Rf2
$1 {[%emt 0:00:23]} 32. h3 {[%emt 0:00:29]} Kd8 {[%emt 0:01:10]} 33. a4 {
[%emt 0:00:30]} Ke7 {[%emt 0:00:24]} 34. c6 {[%emt 0:00:00]} bxc6 {[%emt 0:00:
14]} 35. Bxa6 {[%emt 0:00:17]} Kd6 {[%emt 0:00:12]} 36. Nd3 {[%emt 0:00:39]}
Rh2 {[%emt 0:00:11]} 37. a5 {[%emt 0:00:27]} Rxh3 {[%emt 0:00:13]} 38. Bc4 {
[%emt 0:00:23] Strongly threatening Rf1.} Rh4 {[%emt 0:00:10]} 39. b3 {[%emt 0:
00:37]} Rh5 {[%emt 0:00:28]} (39... Bc3 {was called for.}) 40. a6 {[%emt 0:00:
36]} Bc3 {[%emt 0:00:25] ...Ra5 is the strong threat.} 41. Rd1 {[%emt 0:03:17]
Hoping for Nf4+.} Kc7 {[%emt 0:01:59]} 42. Nb2 {[%emt 0:02:54]} ({Weaker is} 
42. Rf1 Rf5 43. Rxf5 gxf5 $18) 42... Ra5 {[%emt 0:04:27]} 43. Rh1 {[%emt 0:02:
17]} Kd6 $2 {[%emt 0:02:28]} (43... Rh5 44. Rd1 Ra5) 44. Rh3 {[%emt 0:02:29]}
Be1 {[%emt 0:05:10]} 45. Rf3 {[%emt 0:00:00]} Ke7 {[%emt 0:00:50]} 46. Na4 {
[%emt 0:06:03]} g5 {[%emt 0:01:09]} 47. Kb2 {[%emt 0:00:53]} g4 {[%emt 0:00:56]
} 48. Rf1 {[%emt 0:00:50]} Bd2 {[%emt 0:00:00]} 49. Ra1 {[%emt 0:02:19]} f5 $2
{[%emt 0:04:40]} (49... g3 50. Rg1 Rg5) 50. c3 {[%emt 0:03:37]} g3 {[%emt 0:02:
56]} 51. b4 {[%emt 0:00:51]} Rxa4 {[%emt 0:00:00]} 52. Rxa4 {[%emt 0:00:06]
White wants to mate with a7.} Bc1+ {[%emt 0:00:00]} 53. Kc2 {[%emt 0:01:10]
White mates.} g2 {[%emt 0:00:24]} 54. a7 {[%emt 0:00:05]} g1=Q {[%emt 0:00:12]}
55. a8=Q {[%emt 0:00:07]} Be3 {[%emt 0:00:00]} 56. Ra1 {[%emt 0:00:18]} (56.
Qxc6 $2 {gets mated.} Qc1+ 57. Kb3 Qb1+ 58. Ka3 Bc1#) 56... Qg2+ {[%emt 0:02:
02]} 57. Kb3 {[%emt 0:00:06]} f4 {[%emt 0:00:00]} 58. Rd1 {[%emt 0:00:29]
Weighted Error Value: White=0.35/Black=0.65} 1-0

[Event "44th Chess Olympiad Women 2022"]
[Site "Chennai"]
[Date "2022.08.06"]
[Round "8.11"]
[White "Van Foreest, Machteld"]
[Black "Paredes Bustamante, Paula Elizab"]
[Result "0-1"]
[WhiteElo "2299"]
[BlackElo "2162"]
[Annotator "NA RC"]
[PlyCount "74"]
[EventDate "2022.??.??"]
[TimeControl "60"]

1. e4 {[%emt 0:00:12]} e5 {[%emt 0:00:07]} 2. Nf3 {[%emt 0:00:23]} Nc6 {
[%emt 0:00:01]} 3. Bc4 {[%emt 0:00:29]} Bc5 {[%emt 0:00:05]} 4. c3 {[%emt 0:00:
00]} Nf6 {[%emt 0:00:03]} 5. d3 {[%emt 0:00:29]} d6 {[%emt 0:00:04]} 6. Bb3 {
[%emt 0:00:35]} Bg4 {[%emt 0:00:07]} 7. Nbd2 {[%emt 0:06:04]} Qd7 {[%emt 0:00:
00]} 8. Bc2 {[%emt 0:11:25]} a6 {[%emt 0:03:36]} 9. h3 {[%emt 0:02:21]} Bh5 {
[%emt 0:00:08]} 10. Qe2 {[%emt 0:04:44]} h6 {[%emt 0:07:12]} 11. Nf1 {[%emt 0:
00:00]} O-O-O {[%emt 0:26:17]} 12. Be3 {[%emt 0:05:56]} Bxe3 {[%emt 0:00:00]}
13. Nxe3 {[%emt 0:15:45]} d5 {[%emt 0:00:00]} 14. O-O-O {[%emt 0:06:42]} d4 {
[%emt 0:00:00]} 15. g4 {[%emt 0:06:52]} Bg6 {[%emt 0:02:52]} 16. Nc4 {[%emt 0:
00:00]} dxc3 {[%emt 0:14:29]} 17. bxc3 {[%emt 0:01:43]} Qe7 {[%emt 0:00:12]}
18. Kb2 {[%emt 0:01:31]} b5 {[%emt 0:00:05]} 19. Ncd2 {[%emt 0:06:08]} Nd7 {
[%emt 0:03:15]} 20. Nb3 {[%emt 0:00:37]} Nb6 {[%emt 0:00:07]} 21. Na1 {[%emt 0:
00:00]} a5 {[%emt 0:09:33]} 22. Bb3 {[%emt 0:02:37]} a4 {[%emt 0:00:48]} 23.
Bc2 {[%emt 0:00:23]} Na5 {[%emt 0:05:51]} 24. Nd2 {[%emt 0:00:59]} b4 {[%emt 0:
00:00]} 25. c4 {[%emt 0:01:06]} b3 {[%emt 0:03:20]} 26. axb3 {[%emt 0:01:10]}
Qb4 {[%emt 0:02:16]} 27. Nb1 {[%emt 0:03:42]} axb3 {[%emt 0:01:26]} 28. Nxb3 {
[%emt 0:01:21]} Na4+ {[%emt 0:02:21]} 29. Ka2 {[%emt 0:00:03]} Nxb3 {[%emt 0:
00:00]} 30. Bxb3 {[%emt 0:00:02]} Nc5 {[%emt 0:00:05]} 31. Qc2 {[%emt 0:01:39]}
Rd6 {[%emt 0:00:17]} 32. Kb2 {[%emt 0:00:39]} Rb6 {[%emt 0:00:34]} 33. Nd2 {
[%emt 0:00:13]} Rd8 {[%emt 0:00:15]} 34. Ra1 {[%emt 0:00:47]} Rxd3 {[%emt 0:00:
00]} 35. Rhd1 {[%emt 0:00:30]} Nxb3 {[%emt 0:01:13]} 36. Qxd3 {[%emt 0:00:36]}
Nxd2+ {[%emt 0:00:03]} 37. Kc1 {[%emt 0:00:31]} Qb2# {[%emt 0:00:33]} 0-1

[Event "44th Chess Olympiad Women 2022"]
[Site "Chennai"]
[Date "2022.08.06"]
[Round "8.12"]
[White "Aulia, Medina Warda"]
[Black "Blagojevic, Tijana"]
[Result "1-0"]
[WhiteElo "2374"]
[BlackElo "2330"]
[Annotator "TA"]
[PlyCount "97"]
[EventDate "2022.??.??"]
[TimeControl "60"]

{[%evp 11,97,8,13,4,5,5,1,1,13,0,20,26,25,22,9,13,11,17,9,18,18,8,9,7,0,-42,0,
0,0,0,27,27,27,16,57,52,61,58,236,249,207,29,41,37,37,37,47,27,103,60,224,116,
117,116,114,103,224,94,95,101,662,658,652,601,2306,1720,982,933,669,629,29962,
29954,9204,6420,29974,29975,29975,29976,29976,29977,29977,29978,29978,29977,
29981,29982,29982,29982]} 1. e4 {[%emt 0:00:03]} e5 {[%emt 0:00:07]} 2. Nf3 {
[%emt 0:00:07]} Nc6 {[%emt 0:00:05]} 3. Bb5 {[%emt 0:00:09]} Nf6 {[%emt 0:00:
00]} 4. d3 {[%emt 0:00:15]} Bc5 {[%emt 0:00:09]} 5. O-O {[%emt 0:00:29]} Nd4 {
[%emt 0:00:13]} 6. Nxd4 {[%emt 0:00:11]} Bxd4 {[%emt 0:00:11]} 7. c3 {[%emt 0:
00:00] C65: Ruy Lopez: Berlin Defence (3...Nf6), unusual lines and 4 0-0 Bc5.}
Bb6 {[%emt 0:00:12]} 8. Na3 $1 {[%emt 0:00:55] 8.Na3 is the recent fashion.} c6
{[%emt 0:01:21]} 9. Ba4 {[%emt 0:00:36] The position is equal.} d6 {[%emt 0:01:
10]} 10. Bb3 {[%emt 0:00:11]} Qe7 {[%emt 0:16:54]} 11. Nc4 {[%emt 0:02:13]} Bc7
{[%emt 0:00:10] [#]} 12. a4 $146 {[%emt 0:03:03]} ({Predecessor:} 12. f4 b5 13.
fxe5 dxe5 14. Ne3 O-O 15. Nf5 Bxf5 16. Rxf5 h6 17. Qf3 Nh7 18. Bd2 {0-1 (34)
Karjakin,S (2754)-Vidit,S (2721) Moscow 2019}) 12... Be6 {[%emt 0:05:35]} 13.
a5 {[%emt 0:06:56]} O-O {[%emt 0:02:07]} 14. Bg5 {[%emt 0:02:59]} h6 {[%emt 0:
00:15]} 15. Bh4 {[%emt 0:00:11]} d5 {[%emt 0:03:10]} 16. exd5 {[%emt 0:08:17]}
cxd5 {[%emt 0:00:17]} 17. Ne3 {[%emt 0:00:08][%cal Yb3d5]} d4 {[%emt 0:06:55]}
18. Nc4 {[%emt 0:04:28]} dxc3 {[%emt 0:09:31]} (18... Rfd8 $5 {[%cal Re5e4]})
19. bxc3 {[%emt 0:00:07]} g5 {[%emt 0:11:52]} 20. Bg3 {[%emt 0:00:35]} Nd5 {
[%emt 0:00:07]} 21. Nxe5 {[%emt 0:11:13]} Nxc3 {[%emt 0:01:34]} 22. Qe1 {
[%emt 0:00:42]} Ne2+ {[%emt 0:08:25]} 23. Qxe2 {[%emt 0:04:05]} Bxb3 {[%emt 0:
00:03]} 24. Qb2 {[%emt 0:01:31]} Qe6 {[%emt 0:00:00] Inhibits Ng4.} (24... Bxe5
$14 25. Bxe5 Bd5) 25. Rfe1 $1 $18 {[%emt 0:00:00]} Bd5 {[%emt 0:00:54] [#]
Inhibits Nc4.} 26. h3 $2 {[%emt 0:04:23]} ({Only move:} 26. Qd4 $1 $18 Bd8 27.
Ng4) 26... Qf6 {[%emt 0:04:25]} 27. Qb4 {[%emt 0:04:10] aiming for Ng4.} Bxe5 {
[%emt 0:01:04]} 28. Bxe5 {[%emt 0:01:52]} Qg6 {[%emt 0:00:49]} 29. Re3 {
[%emt 0:06:49]} Rfe8 {[%emt 0:00:48]} (29... a6 $11 {keeps the balance.}) 30.
Rae1 {[%emt 0:07:38][%cal Ya1e1,Ye1e3,Ye3g3]} Re6 $2 {[%emt 0:02:53] [#]} ({
Black should play} 30... Bc6 $14) 31. Bb2 {[%emt 0:00:32]} ({White must play} 
31. Ba1 $1 $18 {Threatens to win with Qd4.} Rxe3 32. fxe3 (32. Rxe3 Qc6 $16)
32... Qxd3 33. e4) 31... Rxe3 $16 {[%emt 0:00:49]} 32. Rxe3 {[%emt 0:00:09]}
Kh7 {[%emt 0:04:40]} 33. Qd4 $36 {[%emt 0:05:38] White is really pushing.} Be6
{[%emt 0:00:44]} (33... Bc6 $16 34. Re7 Rf8) 34. h4 {[%emt 0:01:38]} (34. Rf3
$18 f5 35. Re3) 34... gxh4 {[%emt 0:00:53]} 35. Qxh4 {[%emt 0:00:22] Strongly
threatening Rg3.} Rg8 $2 {[%emt 0:00:45]} (35... Qg4 $16 36. Qxg4 Bxg4) 36. Rg3
$18 {[%emt 0:01:14] Active counter play!} Bg4 {[%emt 0:02:32]} 37. f3 {[%emt 0:
00:00][%cal Rg3g4,Yf2f3,Yf3g4]} Qxd3 {[%emt 0:00:36] Hoping for ...Qb1+.} 38.
Qf6 {[%emt 0:00:08]} Qf5 {[%emt 0:05:24]} 39. Rxg4 {[%emt 0:03:43] White wants
to mate with Qh8+.} Qxf6 {[%emt 0:01:11]} 40. Bxf6 {[%emt 0:00:05]} Rxg4 {
[%emt 0:00:07]} 41. fxg4 {[%emt 0:30:03] KB-KP} Kg6 {[%emt 0:30:12]} 42. Bd8 {
[%emt 0:01:25] Threatening mate with Kh2.} b5 {[%emt 0:02:06]} 43. axb6 {
[%emt 0:00:43] White mates.} axb6 {[%emt 0:00:05]} 44. Bxb6 {[%emt 0:00:02]
KB-KPP} Kg5 {[%emt 0:00:07]} 45. Be3+ {[%emt 0:00:04]} Kxg4 {[%emt 0:00:11]}
46. Bxh6 {[%emt 0:00:09]} Kg3 {[%emt 0:00:06]} 47. Bf8 {[%emt 0:01:38]} f5 {
[%emt 0:00:07]} 48. Bd6+ {[%emt 0:00:06]} f4 {[%emt 0:00:06]} 49. Kf1 {[%emt 0:
00:00] Weighted Error Value: White=0.18 (very precise) /Black=0.74} 1-0

[Event "44th Chess Olympiad Women 2022"]
[Site "Chennai"]
[Date "2022.08.06"]
[Round "8.12"]
[White "Citra, Dewi Ardhiani Anast"]
[Black "Velikic, Adela"]
[Result "1/2-1/2"]
[WhiteElo "2257"]
[BlackElo "2273"]
[Annotator "RC"]
[PlyCount "99"]
[EventDate "2022.??.??"]
[TimeControl "60"]

1. d4 {[%emt 0:01:06]} d5 {[%emt 0:00:05]} 2. Bf4 {[%emt 0:00:07]} c5 {[%emt 0:
00:00]} 3. e3 {[%emt 0:00:26]} cxd4 {[%emt 0:00:12]} 4. exd4 {[%emt 0:01:11]}
Nc6 {[%emt 0:00:11]} 5. c3 {[%emt 0:07:26]} Bf5 {[%emt 0:00:36]} 6. Qb3 {
[%emt 0:03:31]} Qd7 {[%emt 0:00:35]} 7. Nf3 {[%emt 0:00:32]} e6 {[%emt 0:01:06]
} 8. Bb5 {[%emt 0:02:01]} f6 {[%emt 0:01:14]} 9. Nbd2 {[%emt 0:03:43]} g5 {
[%emt 0:08:47]} 10. Bg3 {[%emt 0:05:36]} h5 {[%emt 0:01:39]} 11. h3 {[%emt 0:
00:00]} Nge7 {[%emt 0:08:32]} 12. Qd1 {[%emt 0:05:58]} Bg6 {[%emt 0:17:32]} 13.
Nb3 {[%emt 0:03:00]} Nf5 {[%emt 0:06:57]} 14. Bh2 {[%emt 0:02:23]} Kf7 {
[%emt 0:16:34]} 15. g4 {[%emt 0:03:44]} hxg4 {[%emt 0:11:19]} 16. hxg4 {
[%emt 0:00:08]} Nh4 {[%emt 0:01:31]} 17. Nxh4 {[%emt 0:20:15]} Rxh4 {[%emt 0:
00:00]} 18. Kd2 {[%emt 0:00:10]} a6 {[%emt 0:08:42]} 19. Bd3 {[%emt 0:03:57]}
Bxd3 {[%emt 0:04:06]} 20. Kxd3 {[%emt 0:00:02]} e5 {[%emt 0:07:17]} 21. dxe5 {
[%emt 0:03:50]} fxe5 {[%emt 0:00:45]} 22. Kc2 {[%emt 0:01:41]} Kg8 {[%emt 0:00:
00]} 23. Qd3 {[%emt 0:03:20]} Qh7 {[%emt 0:01:43]} 24. Qxh7+ {[%emt 0:00:21]}
Kxh7 {[%emt 0:00:38]} 25. Bg3 {[%emt 0:00:21]} Rxh1 {[%emt 0:00:32]} 26. Rxh1+
{[%emt 0:00:05]} Kg6 {[%emt 0:00:25]} 27. Re1 {[%emt 0:03:24]} Kf6 {[%emt 0:00:
00]} 28. Nd2 {[%emt 0:01:13]} Rc8 {[%emt 0:00:29]} 29. Kd1 {[%emt 0:00:58]} Bc5
{[%emt 0:00:31]} 30. Nb3 {[%emt 0:07:41]} Bb6 {[%emt 0:00:18]} 31. Ke2 {
[%emt 0:01:10]} Rh8 {[%emt 0:00:36]} 32. Rd1 {[%emt 0:02:37]} Ke6 {[%emt 0:00:
00]} 33. Nd2 {[%emt 0:06:23]} e4 {[%emt 0:00:49]} 34. Nf1 {[%emt 0:01:17]} Ne5
{[%emt 0:00:24]} 35. Bxe5 {[%emt 0:00:56]} Kxe5 {[%emt 0:00:06]} 36. Ne3 {
[%emt 0:00:36]} Bxe3 {[%emt 0:00:22]} 37. Kxe3 {[%emt 0:00:05]} Rh3+ {[%emt 0:
00:00]} 38. Ke2 {[%emt 0:00:05]} Rh2 {[%emt 0:00:49]} 39. Rd4 {[%emt 0:01:14]}
Rh4 {[%emt 0:00:41]} 40. Rb4 {[%emt 0:00:12]} b5 {[%emt 0:00:54]} 41. a4 {
[%emt 0:30:13]} bxa4 {[%emt 0:04:05]} 42. Rxa4 {[%emt 0:00:00]} Rh6 {[%emt 0:
00:00]} 43. Ra5 {[%emt 0:00:00]} Rb6 {[%emt 0:02:57]} 44. b4 {[%emt 0:00:00]}
Rc6 {[%emt 0:01:19]} 45. Kd2 {[%emt 0:00:00]} Rd6 {[%emt 0:10:22]} 46. Ke3 {
[%emt 0:00:00]} Rc6 {[%emt 0:01:23]} 47. Kd2 {[%emt 0:00:00]} Kd6 {[%emt 0:00:
00]} 48. Ra1 {[%emt 0:00:00]} Rb6 {[%emt 0:00:41]} 49. Ra5 {[%emt 0:00:00]} Ke6
{[%emt 0:01:57]} 50. Rc5 {[%emt 0:00:00]} 1/2-1/2

[Event "44th Chess Olympiad Women 2022"]
[Site "Chennai"]
[Date "2022.08.06"]
[Round "8.12"]
[White "Eric, Jovana"]
[Black "Mariroh, Fariha"]
[Result "1-0"]
[WhiteElo "2271"]
[BlackElo "1839"]
[Annotator "NA RC"]
[PlyCount "61"]
[EventDate "2022.??.??"]
[TimeControl "60"]

1. e4 {[%emt 0:00:03]} c5 {[%emt 0:00:06]} 2. Nf3 {[%emt 0:00:06]} d6 {[%emt 0:
00:00]} 3. d4 {[%emt 0:00:06]} cxd4 {[%emt 0:00:07]} 4. Nxd4 {[%emt 0:00:05]}
Nf6 {[%emt 0:00:06]} 5. Nc3 {[%emt 0:00:04]} Nc6 {[%emt 0:00:05]} 6. Bg5 {
[%emt 0:00:17]} e6 {[%emt 0:00:12]} 7. Qd2 {[%emt 0:00:20]} a6 {[%emt 0:00:13]}
8. O-O-O {[%emt 0:00:38]} Bd7 {[%emt 0:00:07]} 9. f3 {[%emt 0:00:23]} Nxd4 {
[%emt 0:01:04]} 10. Qxd4 {[%emt 0:00:06]} Be7 {[%emt 0:00:18]} 11. h4 {[%emt 0:
00:00]} b5 {[%emt 0:04:52]} 12. Kb1 {[%emt 0:04:44]} Qc7 {[%emt 0:00:35]} 13.
g4 {[%emt 0:01:26]} O-O {[%emt 0:04:05]} 14. Be3 {[%emt 0:03:23]} Rfc8 {
[%emt 0:00:12]} 15. Qd2 {[%emt 0:03:50]} b4 {[%emt 0:11:21]} 16. Ne2 {[%emt 0:
00:00]} a5 {[%emt 0:00:09]} 17. h5 {[%emt 0:02:29]} a4 {[%emt 0:05:41]} 18. Nc1
{[%emt 0:11:55]} d5 {[%emt 0:26:18]} 19. g5 {[%emt 0:07:40]} Ne8 {[%emt 0:00:
00]} 20. exd5 {[%emt 0:01:17]} b3 {[%emt 0:04:07]} 21. cxb3 {[%emt 0:04:05]}
exd5 {[%emt 0:02:34]} 22. Bd3 {[%emt 0:00:55]} Be6 {[%emt 0:10:30]} 23. Bd4 {
[%emt 0:08:34]} Qd7 {[%emt 0:09:15]} 24. b4 {[%emt 0:07:15]} a3 {[%emt 0:01:35]
} 25. b3 {[%emt 0:02:19]} Rab8 {[%emt 0:00:17]} 26. b5 {[%emt 0:01:22]} Nd6 {
[%emt 0:04:57]} 27. g6 {[%emt 0:03:38]} fxg6 {[%emt 0:02:06]} 28. hxg6 {
[%emt 0:00:05]} Nf5 {[%emt 0:08:16]} 29. Rxh7 {[%emt 0:10:34]} Nxd4 {[%emt 0:
00:00]} 30. Qh2 {[%emt 0:00:04]} Kf8 {[%emt 0:00:36]} 31. Rh8+ {[%emt 0:00:11]}
1-0